bitfinex-derivatives/quotes_BTCF0:USTF0_20241218
["timestamp","ask_amount","ask_price","bid_price","bid_amount"]
[1734509797453,0.0001159,104110.0,104100.0,1.16684118]
[1734509797650,0.04802,104130.0,104120.0,0.048023]
[1734509797850,0.04802,104130.0,104120.0,0.48277338]
[1734509798050,0.04802,104130.0,104120.0,0.84357338]
[1734509798247,0.048015,104140.0,104120.0,2.64357338]
[1734509798442,0.048015,104140.0,104130.0,0.5108]
[1734509798650,0.048015,104140.0,104130.0,0.51380134]
[1734509798651,0.04809067,104140.0,104130.0,0.51380134]
[1734509798850,0.04809067,104140.0,104130.0,0.56182034]
[1734509799748,7.567e-05,104140.0,104130.0,0.63276938]
[1734509799951,7.567e-05,104140.0,104130.0,0.93276938]
[1734509800272,7.567e-05,104140.0,104130.0,0.63276938]
[1734509800563,7.567e-05,104140.0,104130.0,0.63276859]
[1734509800748,7.567e-05,104140.0,104130.0,0.92976804]
[1734509800961,7.567e-05,104140.0,104130.0,0.93277075]
[1734509801858,0.402926,104160.0,104150.0,0.04801]
[1734509802050,0.402926,104160.0,104150.0,0.84356175]
[1734509802352,0.048006,104160.0,104150.0,0.84356175]
[1734509802554,0.12474481,104170.0,104160.0,0.048005]
[1734509802769,0.12474481,104170.0,104160.0,0.408805]
[1734509802770,0.04944481,104170.0,104160.0,0.408805]
[1734509802956,0.04944481,104170.0,104160.0,0.41180498]
[1734509802957,0.04952712,104170.0,104160.0,0.41180498]
[1734509803152,0.06089355,104170.0,104160.0,0.41180498]
[1734509803568,0.06089355,104170.0,104160.0,0.48940498]
[1734509803780,0.06089355,104170.0,104160.0,0.486405]
[1734509804050,0.01288955,104170.0,104160.0,0.56035394]
[1734509804255,0.00152312,104170.0,104160.0,0.5669049]
[1734509804462,0.00152312,104170.0,104160.0,0.63485404]
[1734509804955,0.04952312,104170.0,104160.0,0.563905]
[1734509805255,0.12047216,104170.0,104160.0,0.3608]
[1734509805459,0.19657216,104170.0,104140.0,0.480815]
[1734509805754,0.19657216,104170.0,104150.0,0.3608]
[1734509806145,0.55737216,104170.0,104150.0,0.3608]
[1734509806351,0.0768,104160.0,104150.0,0.3608]
[1734509806868,0.19575804,104160.0,104150.0,0.3608]
[1734509808153,0.0768,104160.0,104150.0,0.3608]
[1734509809946,0.124806,104160.0,104150.0,0.40881]
[1734509810152,0.048506,104160.0,104150.0,0.40881]
[1734509813954,0.048506,104160.0,104150.0,0.3608]
[1734509814959,0.048506,104160.0,104140.0,0.048013]
[1734509815162,0.048506,104160.0,104150.0,0.3608]
[1734509815461,0.048506,104160.0,104150.0,0.408811]
[1734509815960,0.01146935,104160.0,104150.0,0.408811]
[1734509816765,0.05947535,104160.0,104150.0,0.408811]
[1734509817369,0.01146935,104160.0,104150.0,0.408811]
[1734509818564,0.05947535,104160.0,104150.0,0.408811]
[1734509818865,0.01146935,104160.0,104150.0,0.408811]
[1734509819068,0.0005,104160.0,104150.0,0.47976004]
[1734509819865,0.0005,104160.0,104150.0,1.908811]
[1734509820566,0.0005,104160.0,104150.0,0.408811]
[1734509820773,0.0005,104160.0,104150.0,0.432011]
[1734509821668,0.048506,104160.0,104150.0,0.432011]
[1734509821980,0.048506,104160.0,104150.0,0.384]
[1734509822267,0.123006,104160.0,104150.0,0.384]
[1734509823267,0.123006,104160.0,104150.0,0.432011]
[1734509823974,0.123006,104160.0,104150.0,0.384]
[1734509824162,0.19395504,104160.0,104150.0,0.384]
[1734509824470,0.30865607,104160.0,104150.0,0.384]
[1734509824684,0.30865607,104160.0,104150.0,0.0232]
[1734509825074,0.45153236,104160.0,104150.0,0.0232]
[1734509826169,0.33683133,104160.0,104150.0,0.0232]
[1734509827068,0.50923121,104160.0,104150.0,0.0232]
[1734509827672,0.79760396,104160.0,104150.0,0.0232]
[1734509827867,0.62520408,104160.0,104150.0,0.0232]
[1734509828068,0.92520408,104160.0,104130.0,0.17113143]
[1734509828308,0.92520408,104160.0,104120.0,0.76110269]
[1734509828309,0.26270638,104140.0,104120.0,0.76110269]
[1734509828470,0.23988433,104130.0,104120.0,0.76110269]
[1734509828693,0.31168433,104130.0,104120.0,0.53204489]
[1734509828886,0.45542667,104130.0,104120.0,0.53204489]
[1734509829081,0.34046234,104130.0,104120.0,0.17124489]
[1734509829291,0.45538519,104130.0,104120.0,0.00011346]
[1734509829492,0.45538519,104130.0,104120.0,0.17124489]
[1734509829686,0.38259189,104130.0,104120.0,0.17124489]
[1734509829885,0.52633423,104130.0,104120.0,0.17124489]
[1734509830287,0.38259189,104130.0,104120.0,0.00011346]
[1734509830889,0.74339189,104130.0,104120.0,0.00011346]
[1734509831096,0.74339189,104130.0,104110.0,0.17113143]
[1734509831097,0.048024,104120.0,104110.0,0.17113143]
[1734509831294,0.048029,104110.0,104100.0,0.17113143]
[1734509831502,0.9493588,104110.0,104090.0,0.53337224]
[1734509831794,0.07094904,104100.0,104090.0,0.53337224]
[1734509831988,0.11482076,104100.0,104090.0,0.53337224]
[1734509832292,0.048034,104100.0,104090.0,0.36224081]
[1734509833794,0.048034,104100.0,104090.0,0.00144081]
[1734509834186,0.9784298,104110.0,104090.0,0.36224081]
[1734509834390,1.03728602,104110.0,104090.0,0.36224081]
[1734509834803,1.08531802,104110.0,104090.0,0.36224081]
[1734509834992,0.97049726,104110.0,104090.0,0.36224081]
[1734509835307,0.92246526,104110.0,104090.0,0.36224081]
[1734509835613,0.048034,104100.0,104090.0,0.00144081]
[1734509835994,0.96018602,104110.0,104090.0,0.00144081]
[1734509836203,0.79733426,104110.0,104090.0,0.00144081]
[1734509836496,0.048034,104100.0,104090.0,0.00144081]
[1734509837709,0.048038,104090.0,104080.0,0.5902]
[1734509838212,0.048038,104090.0,104080.0,0.4388]
[1734509838424,0.26958304,104100.0,104080.0,0.486842]
[1734509838425,0.26958404,104100.0,104080.0,0.486842]
[1734509838596,0.198635,104100.0,104080.0,0.486842]
[1734509838797,0.246672,104100.0,104080.0,0.486842]
[1734509839201,0.198635,104100.0,104090.0,0.0005]
[1734509840004,0.26958404,104100.0,104090.0,0.0005]
[1734509842003,0.77441622,104110.0,104090.0,0.409338]
[1734509842197,0.84536526,104110.0,104090.0,0.409338]
[1734509842904,0.36558522,104110.0,104100.0,0.408834]
[1734509843195,0.41361422,104110.0,104090.0,0.485334]
[1734509843405,0.41361422,104110.0,104100.0,0.408834]
[1734509843607,0.36558522,104110.0,104100.0,0.408834]
[1734509844720,0.35476,104110.0,104100.0,0.408834]
[1734509844999,0.35476,104110.0,104100.0,0.48713564]
[1734509845608,0.35476,104110.0,104100.0,0.55808468]
[1734509845904,0.12833311,104130.0,104120.0,0.048024]
[1734509846208,0.06026737,104130.0,104120.0,0.41182564]
[1734509846708,0.06026737,104130.0,104120.0,0.48822564]
[1734509847692,0.00151211,104130.0,104120.0,0.485224]
[1734509847894,0.00151211,104130.0,104120.0,0.84902515]
[1734509847895,7.097e-05,104130.0,104120.0,0.84902515]
[1734509848299,7.097e-05,104130.0,104120.0,0.91997419]
[1734509849904,7.097e-05,104130.0,104120.0,1.21997419]
[1734509850908,7.097e-05,104130.0,104120.0,1.62016342]
[1734509852007,7.097e-05,104130.0,104120.0,1.61716227]
[1734509852198,0.00057097,104130.0,104120.0,1.61716227]
[1734509853001,0.00057097,104130.0,104120.0,1.44603084]
[1734509853002,1e-08,104130.0,104120.0,1.44603084]
[1734509853204,0.05851073,104150.0,104140.0,0.048015]
[1734509853409,0.05851073,104150.0,104140.0,0.408815]
[1734509853916,0.05863406,104150.0,104140.0,0.486715]
[1734509854906,0.1295831,104150.0,104140.0,0.3608]
[1734509855704,0.048017,104140.0,104130.0,0.3608]
[1734509856011,0.04802,104130.0,104120.0,0.3608]
[1734509856203,0.12252,104130.0,104120.0,0.3608]
[1734509856513,0.12252,104130.0,104110.0,0.78041698]
[1734509857210,0.12252,104130.0,104110.0,1.00947478]
[1734509857515,0.12252,104130.0,104110.0,0.96144778]
[1734509857516,0.24149204,104130.0,104110.0,0.96144778]
[1734509857716,0.19346904,104130.0,104110.0,0.73238998]
[1734509857905,0.12252,104130.0,104110.0,0.73238998]
[1734509858507,0.11897304,104120.0,104110.0,0.3608]
[1734509859844,0.048029,104110.0,104100.0,0.048034]
[1734509860039,0.048029,104110.0,104100.0,0.408834]
[1734509860273,0.048029,104110.0,104100.0,0.409334]
[1734509860513,0.11897804,104110.0,104100.0,0.3613]
[1734509860714,0.126229,104110.0,104100.0,0.0005]
[1734509860912,0.126229,104110.0,104100.0,0.3613]
[1734509861215,0.126229,104110.0,104100.0,0.3608]
[1734509861511,0.126229,104110.0,104090.0,2.38699768]
[1734509861911,0.126229,104110.0,104100.0,0.3608]
[1734509862117,0.19717804,104110.0,104100.0,0.3613]
[1734509862313,0.19717804,104110.0,104100.0,0.0005]
[1734509862710,0.19725502,104110.0,104100.0,0.0005]
[1734509863216,0.19725502,104110.0,104090.0,2.08163988]
[1734509863433,0.0791,104100.0,104090.0,2.08163988]
[1734509863818,0.0791,104100.0,104090.0,0.58163988]
[1734509864421,0.0791,104100.0,104090.0,2.08163988]
[1734509864809,0.0791,104100.0,104090.0,0.58163988]
[1734509865207,0.0791,104100.0,104090.0,2.08163988]
[1734509865419,0.127134,104100.0,104090.0,1.67280488]
[1734509865720,0.19808304,104100.0,104090.0,0.17280488]
[1734509865907,0.19808304,104100.0,104090.0,0.0014409]
[1734509866713,0.127134,104100.0,104090.0,0.0014409]
[1734509866942,0.127134,104100.0,104090.0,0.17280488]
[1734509870123,0.127134,104100.0,104090.0,0.53410488]
[1734509872211,0.19808304,104100.0,104090.0,0.53410488]
[1734509872419,0.19808304,104100.0,104090.0,0.3627409]
[1734509874519,0.127134,104100.0,104090.0,0.3627409]
[1734509875130,0.19808304,104100.0,104090.0,0.36574305]
[1734509876222,0.19808304,104100.0,104090.0,0.36574306]
[1734509876421,0.19808304,104100.0,104090.0,0.3627409]
[1734509876645,0.19808304,104100.0,104090.0,0.0019409]
[1734509877027,0.127134,104100.0,104090.0,0.3627409]
[1734509877219,0.127134,104100.0,104090.0,0.36574305]
[1734509877625,0.0791,104100.0,104090.0,0.41378105]
[1734509878327,0.0791,104100.0,104090.0,0.36574305]
[1734509878530,0.127134,104100.0,104090.0,0.36574305]
[1734509881633,0.127134,104100.0,104090.0,0.36574295]
[1734509882323,0.127134,104100.0,104090.0,0.53710693]
[1734509883033,0.19808304,104100.0,104090.0,0.00494295]
[1734509883229,0.19808304,104100.0,104090.0,0.53410488]
[1734509883533,0.19808304,104100.0,104090.0,0.17330488]
[1734509884631,0.21762711,104100.0,104090.0,0.17330488]
[1734509884837,0.57842711,104100.0,104090.0,0.17330488]
[1734509885332,0.69324787,104100.0,104090.0,0.17580716]
[1734509887335,0.69324787,104100.0,104090.0,0.40486496]
[1734509887638,0.69324787,104100.0,104090.0,0.40342406]
[1734509887831,0.69324787,104100.0,104090.0,0.40042178]
[1734509888055,0.69324787,104100.0,104090.0,0.40342427]
[1734509888225,0.83699021,104100.0,104090.0,0.40342427]
[1734509888423,0.83699021,104100.0,104090.0,0.40042178]
[1734509889032,0.90793925,104100.0,104090.0,0.40042178]
[1734509889339,0.79311849,104100.0,104090.0,0.17136398]
[1734509890246,0.77357442,104100.0,104090.0,0.17136398]
[1734509890740,0.41277442,104100.0,104090.0,0.17136398]
[1734509890936,0.77357442,104100.0,104090.0,0.17136398]
[1734509892231,0.94606523,104100.0,104090.0,0.17136398]
[1734509892442,0.77357442,104100.0,104090.0,0.17136398]
[1734509893838,0.79294495,104100.0,104090.0,0.17136398]
[1734509894934,0.96543576,104100.0,104090.0,0.17136398]
[1734509895141,0.048038,104090.0,104080.0,0.41042178]
[1734509895338,0.77445027,104090.0,104080.0,0.41042178]
[1734509895836,0.77445027,104090.0,104080.0,0.18136398]
[1734509896241,0.77445027,104090.0,104080.0,0.0105]
[1734509896242,0.94694108,104090.0,104080.0,0.0105]
[1734509896738,1.2470611,104090.0,104080.0,0.0105]
[1734509897239,1.10319787,104090.0,104080.0,0.01]
[1734509897642,0.80319787,104090.0,104080.0,0.01]
[1734509897832,1.10319787,104090.0,104080.0,0.01]
[1734509898233,1.10319787,104090.0,104080.0,0.0005]
[1734509898547,0.048043,104080.0,104060.0,0.2290578]
[1734509898739,0.81172365,104070.0,104060.0,0.2290578]
[1734509898942,0.048052,104060.0,104050.0,0.91711308]
[1734509899146,0.11900104,104060.0,104050.0,0.63070137]
[1734509899441,0.193104,104060.0,104050.0,0.5898578]
[1734509899628,0.193104,104060.0,104050.0,0.62925994]
[1734509899835,0.193104,104060.0,104050.0,0.5898578]
[1734509903238,0.193104,104060.0,104050.0,0.3608]
[1734509903438,0.20374537,104060.0,104050.0,0.3608]
[1734509904217,0.05879633,104060.0,104050.0,0.3608]
[1734509904339,0.05879633,104060.0,104050.0,0.4324]
[1734509906541,0.05879633,104060.0,104050.0,0.480457]
[1734509909741,0.05879633,104060.0,104050.0,0.4324]
[1734509910335,0.12974537,104060.0,104050.0,0.4324]
[1734509911149,0.12974537,104060.0,104050.0,0.6614578]
[1734509911942,0.12974537,104060.0,104050.0,0.4324]
[1734509912143,0.12974537,104060.0,104050.0,0.6614578]
[1734509913050,0.20214537,104060.0,104050.0,0.5898578]
[1734509913349,0.20214537,104060.0,104050.0,0.62925994]
[1734509913867,0.20214537,104060.0,104050.0,0.5898578]
[1734509915140,0.20214537,104060.0,104050.0,0.5903578]
[1734509915945,0.22431913,104060.0,104050.0,0.5903578]
[1734509917254,0.31038605,104060.0,104050.0,0.5903578]
[1734509917545,0.21726325,104060.0,104050.0,0.5903578]
[1734509917750,0.19142465,104060.0,104050.0,0.5903578]
[1734509917944,0.19142465,104060.0,104050.0,0.6667578]
[1734509918654,0.10535773,104060.0,104050.0,0.6667578]
[1734509919848,0.19142465,104060.0,104050.0,0.6667578]
[1734509920054,0.21580159,104060.0,104050.0,0.6667578]
[1734509920541,0.09681125,104060.0,104050.0,1.169184]
[1734509920745,0.09681125,104060.0,104050.0,1.00122651]
[1734509920948,0.09681125,104060.0,104050.0,0.7148148]
[1734509921151,0.14486425,104060.0,104050.0,1.16891576]
[1734509921549,0.00010296,104060.0,104050.0,1.0107963]
[1734509921751,0.00010296,104060.0,104050.0,1.10789166]
[1734509922645,0.35496,104070.0,104060.0,0.048053]
[1734509922861,0.35496,104070.0,104060.0,1.2334889]
[1734509923153,0.35496,104070.0,104060.0,1.11184549]
[1734509923648,0.35506847,104070.0,104060.0,1.11184549]
[1734509924159,0.40311647,104070.0,104060.0,1.11184549]
[1734509925644,0.35506847,104070.0,104060.0,1.18278383]
[1734509926410,0.35556847,104070.0,104060.0,1.18278383]
[1734509926652,0.40361647,104070.0,104060.0,1.18278383]
[1734509926858,0.40361647,104070.0,104060.0,1.07244335]
[1734509927358,0.40311647,104070.0,104060.0,1.07244335]
[1734509927555,0.40311647,104070.0,104060.0,1.11184549]
[1734509927747,0.35506847,104070.0,104060.0,1.18278383]
[1734509928253,0.04865647,104070.0,104060.0,1.18278383]
[1734509928568,0.04865647,104070.0,104060.0,1.11184549]
[1734509929054,0.00060847,104070.0,104060.0,1.18278383]
[1734509929563,0.00060847,104070.0,104060.0,1.18578632]
[1734509930649,0.00060847,104070.0,104060.0,1.18278383]
[1734509931554,0.00060847,104070.0,104060.0,1.18578681]
[1734509931762,0.00060847,104070.0,104060.0,1.17866046]
[1734509932067,0.05839265,104080.0,104070.0,0.048048]
[1734509932361,0.05839265,104080.0,104070.0,0.84305838]
[1734509932559,0.05839265,104080.0,104070.0,0.99884644]
[1734509932749,0.05839265,104080.0,104070.0,0.9279081]
[1734509933161,0.05850377,104080.0,104070.0,0.9279081]
[1734509933361,0.05850377,104080.0,104070.0,2.4279081]
[1734509933763,0.05850377,104080.0,104070.0,0.93091037]
[1734509934258,0.05900377,104080.0,104070.0,0.93091037]
[1734509934659,0.05900377,104080.0,104070.0,0.9279081]
[1734509935357,0.05850377,104080.0,104070.0,0.9279081]
[1734509935659,0.57630903,104080.0,104070.0,0.00300569]
[1734509935859,0.57630903,104080.0,104060.0,0.51717801]
[1734509935860,0.048048,104070.0,104060.0,0.22980895]
[1734509936055,0.048053,104060.0,104050.0,0.87847801]
[1734509936255,0.048053,104060.0,104050.0,0.27271711]
[1734509936556,0.048053,104060.0,104050.0,0.26971109]
[1734509936763,0.120753,104060.0,104050.0,0.26971109]
[1734509937569,0.120753,104060.0,104050.0,0.23030895]
[1734509937759,0.120753,104060.0,104050.0,0.59110895]
[1734509938058,0.120753,104060.0,104050.0,0.23030895]
[1734509938260,0.120753,104060.0,104050.0,0.59110895]
[1734509938860,0.19169134,104060.0,104050.0,0.23030895]
[1734509939190,0.27784232,104060.0,104050.0,0.23030895]
[1734509939261,0.43014232,104060.0,104050.0,0.23030895]
[1734509939763,0.43014232,104060.0,104040.0,0.10818313]
[1734509939764,0.048057,104050.0,104040.0,0.10818313]
[1734509940066,0.048062,104040.0,104030.0,0.28736906]
[1734509940252,0.19770034,104040.0,104030.0,0.3608]
[1734509940453,0.126762,104040.0,104030.0,0.3608]
[1734509941760,0.19770034,104040.0,104030.0,0.3608]
[1734509942067,0.34590034,104040.0,104030.0,0.3608]
[1734509942453,0.34590034,104040.0,104020.0,0.64816906]
[1734509942663,0.34590034,104040.0,104020.0,0.80848513]
[1734509943264,0.048067,104030.0,104020.0,0.80848513]
[1734509945152,0.07093834,104030.0,104010.0,1.22656967]
[1734509945364,0.11900934,104020.0,104010.0,0.96246159]
[1734509945655,0.048071,104020.0,104010.0,0.51445774]
[1734509945967,0.11900734,104030.0,104010.0,0.51445774]
[1734509946269,0.11900734,104030.0,104010.0,0.56253374]
[1734509946470,0.11900934,104020.0,104010.0,0.36235774]
[1734509947873,0.26840934,104020.0,104010.0,0.36235774]
[1734509948056,0.62348934,104020.0,104010.0,0.36235774]
[1734509948970,0.62348934,104020.0,104010.0,0.00155774]
[1734509949265,0.62348934,104020.0,104010.0,0.36235774]
[1734509950069,0.62360661,104020.0,104010.0,0.36235774]
[1734509950464,0.55266827,104020.0,104010.0,0.36235774]
[1734509950667,0.62360661,104020.0,104010.0,0.36235774]
[1734509952161,0.69740661,104020.0,104010.0,0.36235774]
[1734509958168,0.71689945,104020.0,104010.0,0.36235774]
[1734509958564,0.69740661,104020.0,104010.0,0.36235774]
[1734509959267,0.69740661,104020.0,104010.0,0.36285774]
[1734509959472,0.35519727,104020.0,104010.0,0.41093374]
[1734509960085,0.00011727,104020.0,104010.0,0.55907208]
[1734509960269,0.35516,104040.0,104030.0,0.048065]
[1734509960589,0.42609834,104040.0,104030.0,0.408865]
[1734509961377,0.47426084,104040.0,104030.0,0.408865]
[1734509961876,0.47426084,104040.0,104030.0,0.3608]
[1734509962611,0.49332107,104040.0,104030.0,0.3608]
[1734509962872,0.5036134,104040.0,104030.0,0.3608]
[1734509964485,0.5041134,104040.0,104030.0,0.3608]
[1734509965268,0.54166757,104040.0,104030.0,0.408867]
[1734509965979,0.47072923,104040.0,104030.0,0.408867]
[1734509966176,0.38461306,104040.0,104030.0,0.559067]
[1734509966380,0.38511306,104040.0,104030.0,0.68061877]
[1734509966570,0.36605283,104040.0,104030.0,0.68061877]
[1734509967265,0.36555283,104040.0,104030.0,0.68061877]
[1734509967480,0.36555283,104040.0,104030.0,0.638567]
[1734509967672,0.36555283,104040.0,104030.0,0.68061877]
[1734509968179,0.36555283,104040.0,104030.0,0.96798783]
[1734509968477,0.41411483,104040.0,104030.0,0.96798783]
[1734509968676,0.41411483,104040.0,104030.0,1.12580151]
[1734509969271,0.41361483,104040.0,104030.0,1.12580151]
[1734509969873,0.499731,104040.0,104030.0,1.08374974]
[1734509970279,0.500231,104040.0,104030.0,1.08374974]
[1734509970688,0.500231,104040.0,104030.0,1.08345244]
[1734509971385,0.499731,104040.0,104030.0,1.08345244]
[1734509971974,0.5462974,104040.0,104030.0,1.08345244]
[1734509972376,0.5467974,104040.0,104030.0,1.08345244]
[1734509973411,0.5462974,104040.0,104030.0,1.08345244]
[1734509973778,0.499731,104040.0,104030.0,1.08345244]
[1734509974090,0.5462974,104040.0,104030.0,1.08345244]
[1734509974385,0.46068123,104040.0,104030.0,1.08345244]
[1734509976988,0.46068123,104040.0,104030.0,0.93035244]
[1734509977483,0.5467974,104040.0,104030.0,0.77283606]
[1734509977874,0.5467974,104040.0,104030.0,0.64816906]
[1734509978275,0.5467974,104040.0,104030.0,0.3608]
[1734509978584,0.1916374,104040.0,104030.0,0.64816906]
[1734509978776,0.145071,104040.0,104030.0,0.64816906]
[1734509979084,0.097009,104040.0,104030.0,0.69623606]
[1734509979283,0.01089283,104040.0,104030.0,0.85427858]
[1734509979484,0.05745923,104040.0,104030.0,0.85427858]
[1734509980476,0.05895483,104040.0,104030.0,0.85427858]
[1734509981386,0.10552123,104040.0,104030.0,0.85427858]
[1734509983282,0.10502123,104040.0,104030.0,0.85427858]
[1734509983527,0.1911374,104040.0,104030.0,0.85427858]
[1734509986294,0.144571,104040.0,104030.0,0.85427858]
[1734509986491,0.1911374,104040.0,104030.0,0.85427858]
[1734509988986,0.30615497,104040.0,104030.0,0.85415817]
[1734509989291,0.1911374,104040.0,104030.0,0.85415817]
[1734509989488,0.30615497,104040.0,104030.0,0.56678911]
[1734509989692,0.30615497,104040.0,104030.0,0.86356498]
[1734509989693,0.35272137,104040.0,104030.0,0.86356498]
[1734509989994,0.35272137,104040.0,104030.0,0.44591317]
[1734509989995,0.7033052,104040.0,104030.0,0.44591317]
[1734509990191,0.3425052,104040.0,104030.0,0.44591317]
[1734509990593,0.3712596,104040.0,104030.0,0.44591317]
[1734509991191,0.3712596,104040.0,104030.0,0.28799106]
[1734509992800,0.48651035,104040.0,104030.0,0.33004283]
[1734509993096,0.48651035,104040.0,104030.0,0.48796494]
[1734509993499,0.59031681,104040.0,104030.0,0.04205177]
[1734509993892,0.39997844,104040.0,104020.0,0.69084283]
[1734509994090,0.85951667,104030.0,104020.0,0.85117452]
[1734509994396,0.71548152,104030.0,104020.0,0.85167452]
[1734509994595,0.66891512,104030.0,104020.0,0.85167452]
[1734509994788,1.15165495,104030.0,104020.0,0.0005]
[1734509995297,1.15165495,104030.0,104010.0,0.2895488]
[1734509995494,0.34278016,104020.0,104010.0,0.2895488]
[1734509995720,0.25641555,104020.0,104010.0,0.00155774]
[1734509996489,0.25641555,104020.0,104010.0,0.00011588]
[1734509996490,0.34274933,104020.0,104010.0,0.00011588]
[1734509997093,0.41784933,104020.0,104010.0,0.00011588]
[1734509997293,0.41784933,104020.0,104010.0,0.04216765]
[1734509997802,0.41784933,104020.0,104010.0,0.00011588]
[1734509997997,0.41784933,104020.0,104010.0,0.04216765]
[1734509998794,0.41784933,104020.0,104010.0,0.00011588]
[1734509999602,0.30263758,104020.0,104010.0,0.04216765]
[1734510000195,0.30263758,104020.0,104010.0,0.00011588]
[1734510002311,0.30263758,104020.0,104010.0,0.00061588]
[1734510002505,0.31253837,104020.0,104010.0,0.00061588]
[1734510003505,0.31253837,104020.0,104010.0,0.00011588]
[1734510004269,0.35910477,104020.0,104010.0,0.00011588]
[1734510004502,0.048076,104010.0,104000.0,0.14]
[1734510004712,0.37720041,104010.0,104000.0,0.14]
[1734510005412,0.37729598,104010.0,104000.0,0.14]
[1734510007810,0.19797157,104010.0,104000.0,0.14]
[1734510008005,0.4262297,104010.0,104000.0,0.14]
[1734510008200,0.80146971,104010.0,104000.0,0.14]
[1734510008405,0.7870297,104010.0,104000.0,0.14]
[1734510008610,0.80146971,104010.0,104000.0,0.14]
[1734510009214,0.048081,104000.0,103990.0,0.04205177]
[1734510009420,0.048081,104000.0,103980.0,0.0761]
[1734510009421,0.048086,103990.0,103980.0,0.0761]
[1734510009605,0.47435926,103990.0,103980.0,0.0761]
[1734510010007,0.54575926,103990.0,103980.0,0.09100877]
[1734510010622,0.54575926,103990.0,103980.0,0.09100507]
[1734510011307,0.49767326,103990.0,103980.0,0.45180507]
[1734510011607,0.49767326,103990.0,103980.0,0.71487016]
[1734510011608,0.35524,103990.0,103980.0,0.71487016]
[1734510013409,0.35524,103990.0,103980.0,0.75692193]
[1734510013410,0.42627326,103990.0,103980.0,0.75692193]
[1734510014404,0.35524,103990.0,103980.0,0.71487016]
[1734510014611,0.01027193,103990.0,103980.0,0.75692193]
[1734510014818,0.048082,104000.0,103990.0,0.048086]
[1734510015122,0.048082,104000.0,103990.0,0.559286]
[1734510016117,0.11911526,104000.0,103990.0,0.5112]
[1734510016416,0.11911526,104000.0,103990.0,0.19245177]
[1734510017010,0.11911526,104000.0,103990.0,0.04205177]
[1734510017404,0.12930066,104000.0,103990.0,0.04205177]
[1734510018321,0.12930066,104000.0,103990.0,0.04255177]
[1734510018513,0.12930066,104000.0,103990.0,0.21463964]
[1734510019417,0.12930066,104000.0,103990.0,0.21413964]
[1734510020320,0.12930066,104000.0,103990.0,0.21463964]
[1734510020507,0.0582674,104000.0,103990.0,0.4445198]
[1734510021809,0.0582674,104000.0,103990.0,0.8053198]
[1734510022623,0.0582674,104000.0,103990.0,0.63323193]
[1734510023314,0.0582674,104000.0,103990.0,0.68131693]
[1734510023814,0.14445901,104000.0,103990.0,1.13548132]
[1734510025508,0.14445901,104000.0,103990.0,1.08739632]
[1734510026735,0.14445901,104000.0,103990.0,0.85751616]
[1734510027520,0.14445901,104000.0,103990.0,0.85701616]
[1734510028222,0.14445901,104000.0,103990.0,0.85638845]
[1734510029653,0.14445901,104000.0,103990.0,1.20123132]
[1734510029820,0.09637701,104000.0,103990.0,1.24931432]
[1734510030021,0.14445601,104000.0,103990.0,1.29591378]
[1734510030222,0.14445601,104000.0,103990.0,1.24931432]
[1734510031220,0.19105547,104000.0,103990.0,1.24931432]
[1734510032718,0.19105547,104000.0,103990.0,0.88851432]
[1734510032916,0.19105547,104000.0,103990.0,1.24931432]
[1734510033628,0.30626722,104000.0,103990.0,1.24931432]
[1734510034319,0.19105547,104000.0,103990.0,0.96132326]
[1734510034825,0.21158876,104000.0,103990.0,0.96132326]
[1734510035131,0.09637701,104000.0,103990.0,0.96132326]
[1734510035319,0.14445601,104000.0,103990.0,0.96132326]
[1734510035621,0.09637701,104000.0,103990.0,1.00792272]
[1734510035921,0.14445601,104000.0,103990.0,1.00792272]
[1734510037322,0.14445601,104000.0,103990.0,0.96132326]
[1734510037514,0.19105547,104000.0,103990.0,0.96132326]
[1734510038626,0.19105547,104000.0,103990.0,0.91927149]
[1734510038814,0.10486386,104000.0,103990.0,0.91927149]
[1734510039029,0.19105547,104000.0,103990.0,0.96132326]
[1734510039218,0.19105547,104000.0,103990.0,0.55244026]
[1734510039420,0.19105547,104000.0,103990.0,0.91408226]
[1734510040025,0.19105547,104000.0,103990.0,0.96216526]
[1734510040233,0.19105547,104000.0,103990.0,1.00876472]
[1734510040234,0.14445601,104000.0,103990.0,1.00876472]
[1734510040430,0.19105547,104000.0,103990.0,0.96216526]
[1734510040623,0.14445601,104000.0,103990.0,0.96216526]
[1734510041624,0.13696835,104000.0,103990.0,0.96216526]
[1734510041831,0.08619161,104000.0,103990.0,0.96200371]
[1734510042029,0.14408734,104000.0,103990.0,0.96200371]
[1734510042326,0.23728626,104000.0,103990.0,0.55312071]
[1734510042533,0.2663064,104000.0,103990.0,0.45447431]
[1734510042732,0.48544155,104000.0,103990.0,0.49652608]
[1734510043339,0.48544155,104000.0,103990.0,0.72714982]
[1734510043531,0.84624155,104000.0,103990.0,0.72714982]
[1734510043849,0.7310298,104000.0,103990.0,0.72714982]
[1734510044035,0.7310298,104000.0,103990.0,0.23061008]
[1734510044036,1.07762926,104000.0,103990.0,0.23061008]
[1734510044330,1.20352061,104000.0,103990.0,0.44550544]
[1734510044533,0.75948546,104000.0,103990.0,0.17296086]
[1734510044927,0.90348145,104000.0,103990.0,0.17296086]
[1734510045125,0.75948546,104000.0,103990.0,0.17296086]
[1734510045326,1.10608492,104000.0,103990.0,0.17296086]
[1734510045527,0.90350374,104000.0,103990.0,0.17296086]
[1734510046125,0.9501032,104000.0,103990.0,0.17296086]
[1734510047133,0.9501032,104000.0,103990.0,0.21503742]
[1734510047430,0.048088,103980.0,103970.0,0.64914345]
[1734510047638,0.22766819,103980.0,103970.0,0.81964983]
[1734510047931,0.34284321,103980.0,103970.0,0.81964983]
[1734510048139,0.41684321,103980.0,103970.0,0.81964983]
[1734510048324,0.41693345,103980.0,103970.0,9.521e-05]
[1734510048530,0.43137346,103980.0,103970.0,9.521e-05]
[1734510048735,0.41693345,103980.0,103970.0,9.521e-05]
[1734510049338,0.43137346,103980.0,103970.0,9.521e-05]
[1734510050036,0.63960867,103980.0,103950.0,0.28824824]
[1734510050337,0.63960867,103980.0,103940.0,0.70564287]
[1734510050338,0.048102,103950.0,103940.0,0.64904824]
[1734510050534,0.048102,103950.0,103940.0,0.81580353]
[1734510051136,0.15741278,103960.0,103940.0,0.83076529]
[1734510051332,0.11919721,103950.0,103940.0,0.83076529]
[1734510051530,0.11919721,103950.0,103940.0,0.66401]
[1734510051930,0.11919721,103950.0,103940.0,0.81503722]
[1734510052534,0.11919721,103950.0,103940.0,0.3608]
[1734510052940,0.048102,103950.0,103940.0,0.3608]
[1734510053733,0.048102,103950.0,103940.0,0.408907]
[1734510053935,0.048098,103960.0,103940.0,0.9338917]
[1734510054130,0.05790819,103960.0,103950.0,0.3608]
[1734510055932,0.048102,103950.0,103940.0,0.64904824]